Cogmind - Beta 14 @@@ ROGUE MODE // 2024.08.10 @ 05:59:54 Player: ktur Result: Destroyed by B-36 Bruiser with Hammer Performance ------------- Evolutions (1) 500 Regions Visited (2) 400 Robots Destroyed (32) 160 Value Destroyed (961) 961 Prototype IDs (0) 0 Alien Tech Used (0) 0 Bonus (0) 0 TOTAL SCORE: 2021 Bonus ------- None Cogmind --------- Core Integrity 0/400 Matter 210/300 Energy 265/265 System Corruption 5% Temperature Cool (0) Movement Treading (170) Location -9/Materials Parts ------- > --- POWER (1) -------- Improved Ion Engine > --- PROPULSION (3) --- Armored Treads Armored Treads Armored Treads > --- UTILITY (3) ------ Medium Storage Unit Light Armor Plating > --- WEAPON (2) ------- Heavy Assault Rifle Heavy Assault Rifle > --- INVENTORY (10) --- Armored Treads Cryofiber Web Cooling System Large Storage Unit Beam Rifle Beam Rifle Grenade Launcher Plasma Cutter Katana Peak State ------------ > --- POWER ------------ (None) > --- PROPULSION ------- Armored Treads Armored Treads Armored Treads > --- UTILITY ---------- Medium Storage Unit Visual Processing Unit Salvage Targeting Computer > --- WEAPON ----------- Heavy Assault Rifle Katana > --- INVENTORY -------- Improved Ion Engine Armored Treads Cryofiber Web Cooling System Large Storage Unit Beam Rifle Beam Rifle Heavy Assault Rifle Grenade Launcher Plasma Cutter [Rating: 21] Favorites ----------- Power Ion Engine Engine Ion Engine Propulsion Armored Treads Treads Armored Treads Wheel Wheel Utility Medium Storage Unit Device Seismic Detector Storage Medium Storage Unit Processor Salvage Targeting Computer Protection Light Armor Plating Weapon Heavy Assault Rifle Energy Gun EM Pulse Gun Ballistic Gun Heavy Assault Rifle Launcher Grenade Launcher Slashing Weapon Katana Build | -11 -10 -9 ------- Run | Yrd Mat Mat Slots Evolved 2 | . . 2 Power . | . . . Propulsion 1 | . . 1 Utility 1 | . . 1 Weapon . | . . . Parts Attached 30 | 6 6 18 Power 3 | 1 1 1 Engine 3 | 1 1 1 Core . | . . . Reactor . | . . . Propulsion 8 | 2 . 6 Treads 5 | 2 . 3 Leg . | . . . Wheel 3 | . . 3 Hover . | . . . Flight . | . . . Utility 6 | 1 2 3 Device 1 | . 1 . Storage 2 | 1 1 . Processor 2 | . . 2 Hackware . | . . . Protection 1 | . . 1 Artifact . | . . . Weapon 13 | 2 3 8 Energy Gun 7 | 2 2 3 Energy Cannon . | . . . Ballistic Gun 4 | . 1 3 Ballistic Cannon . | . . . Launcher 1 | . . 1 Special Weapon . | . . . Impact Weapon . | . . . Slashing Weapon 1 | . . 1 Piercing Weapon . | . . . Special Melee Weapon . | . . . Unidentified Prototypes . | . . . Parts Lost 15 | . 5 10 Power 2 | . 1 1 Propulsion 4 | . . 4 Utility 2 | . 1 1 Weapon 7 | . 3 4 Highest Loss Streak 4 | . 4 4 To Critical Strikes . | . . . Average Slot Usage (%) 82 | . 87 80 Engine 5 | . 13 1 Treads 22 | . 28 19 Wheel 5 | . . 8 Device 1 | . 4 . Storage 11 | . 14 11 Processor 12 | . . 17 Protection 1 | . . 1 Energy Gun 11 | . 23 6 Ballistic Gun 8 | . 2 10 Slashing Weapon 2 | . . 4 Peak Build Rating 21 | 6 7 21 Average Rating 12 | 3 6 15 On Entrance 4 | . 6 6 Naked Turns . | . . . Heaviest Build 26 | 14 20 26 Greatest Support 60 | 40 40 60 Greatest Overweight (x) 1 | 1 . . Average Overweight (x) . | . . . Largest Inventory Capacity 10 | 8 10 10 Average Capacity 9 | 7 9 10 Most Carried 10 | 7 6 10 Average Carried 6 | 3 4 7 Final Capacity 10 | 8 10 10 Final Carried 9 | 4 3 9 Class Distribution -------------------- 96% | Mutant 3% | Scavenger-Mutant Dominant Class ---------------- Mutant | -10/Materials Mutant | -9/Materials Resources | -11 -10 -9 ----------- Run | Yrd Mat Mat Matter Collected 508 | 238 52 218 Remotely . | . . . Salvage Created 1195 | . 469 726 Parts 70 | . 20 50 Haulers Intercepted 1 | . 1 . Recyclers Shooed 1 | . . 1 Parts Field Recycled . | . . . Retrieved Matter . | . . . Parts Self-Destructed . | . . . Prevented . | . . . Kills | -11 -10 -9 ------- Run | Yrd Mat Mat Combat Hostiles Destroyed 29 | . 8 21 Melee 7 | . . 7 Guns 17 | . 6 11 AOE 4 | . 2 2 Classes Destroyed 6 | . 3 3 Worker 1 | . . 1 Builder 1 | . 1 . Hauler 1 | . 1 . Swarmer 6 | . . 6 Grunt 18 | . 8 10 Sentry 5 | . . 5 Best Kill Streak 5 | . 3 5 Combat Bots Only 5 | . 3 5 Max Kills in Single Turn 2 | . 2 2 Gunslinging 1 | . 1 . Exploded 1 | . 1 1 Melee 1 | . . 1 Uniques/NPCs Destroyed . | . . . Combat | -11 -10 -9 -------- Run | Yrd Mat Mat Hostile Shots Fired 208 | . 68 140 Missed 54 | . 18 36 Damage Taken 2171 | . 739 1432 Core 598 | . 169 429 Absorbed by Shields . | . . . Core Remaining (%) 66 | 100 32 . Volleys Fired 92 | . 43 49 Largest 2 | . 2 2 Hottest 88 | . 80 88 Shots Fired 154 | . 64 90 Gun 152 | . 64 88 Cannon . | . . . Launcher 2 | . . 2 Special . | . . . Kinetic 50 | . . 50 Thermal 56 | . 18 38 Explosive 2 | . . 2 Electromagnetic 46 | . 46 . Robot Hit Streak 21 | . 8 21 Robot Miss Streak 5 | . 4 5 Penetration Max . | . . . Secondary Targets 3 | . 1 2 Max Gunslinging Chain 1 | . 1 1 Shots Hit Robots 118 | . 40 78 Core Hits 50 | . 15 35 Critical Kills . | . . . Critical Parts Destroyed . | . . . Critical Strikes 2 | . . 2 Burn 1 | . . 1 Sever 1 | . . 1 Melee Attacks 30 | . . 30 Impact . | . . . Slashing 30 | . . 30 Piercing . | . . . Sneak Attacks 1 | . . 1 Combat Hostiles . | . . . Follow-up Attacks . | . . . Damage Inflicted 2358 | . 790 1568 Guns 1469 | . 558 911 Cannons . | . . . Explosions 395 | . 229 166 Melee 464 | . . 464 Ramming 30 | . 3 27 Kinetic 512 | . . 512 Thermal 776 | . 377 399 Explosive 166 | . . 166 Electromagnetic 410 | . 410 . Impact . | . . . Slashing 464 | . . 464 Piercing . | . . . Highest Corruption 5 | . . 5 Average Corruption 5 | . . 5 Corruption Purged . | . . . Corruption Blocked . | . . . Effects 1 | . . 1 Weapon Failures 1 | . . 1 Overload Shots . | . . . Overflow Damage 40 | . 8 32 Projectiles . | . . . Explosions 8 | . 8 . Melee 32 | . . 32 Knockbacks . | . . . Impact . | . . . Kinetic . | . . . Secondary . | . . . Self-Inflicted Damage 60 | . 53 7 Shots 1 | . 1 . Rammed 7 | . 1 6 Targets Rammed 7 | . 1 6 Kicked . | . . . Crushed . | . . . Highest Temperature 245 | . 245 57 Average Temperature 76 | . 94 14 Received Heat Transfer 714 | . 417 297 Effects 2 | . 2 . Interference 2 | . 2 . Siege Activations . | . . . Robots Corrupted . | . . . Combat Hostiles . | . . . Parts Fried 1 | . 1 . Impact Corruptions . | . . . Robots Melted 1 | . . 1 Combat Hostiles 1 | . . 1 Parts Melted 3 | . . 3 Heat Transferred 1737 | . 694 1043 Parts Sabotaged . | . . . Parts Stolen . | . . . Parts Stripped . | . . . Power Chain Reactions 3 | . 3 . Alert | -11 -10 -9 ------- Run | Yrd Mat Mat Peak Influence 223 | . 220 223 Initial 8 | . . 8 Average 76 | . 74 82 Maximum Alert Level 1 | . 1 1 Low Security (%) 94 | 100 91 95 Level 1 5 | . 8 4 Level 2 . | . . . Level 3 . | . . . Level 4 . | . . . Level 5 . | . . . High Security . | . . . Max Security . | . . . Squads Dispatched 5 | . 2 3 Investigation 2 | . 1 1 Extermination . | . . . Reinforcement 3 | . 1 2 Assault . | . . . Garrison . | . . . Intercept . | . . . Searches Triggered . | . . . Construction Impeded . | . . . Haulers Reinforced . | . . . Active Scanning Responses . | . . . Cargo Convoy Interrupts . | . . . Stealth | -11 -10 -9 --------- Run | Yrd Mat Mat Distress Signals 2 | . . 2 Communications Jammed . | . . . Distress Signals . | . . . Times Spotted 43 | . 12 31 Peak Tracking Total 5 | . 5 5 Tactical Retreats 2 | . 1 1 Traps | -11 -10 -9 ------- Run | Yrd Mat Mat Traps Triggered 2 | . 1 1 Indirectly . | . . . Trap Hack Attempts . | . . . Triggered . | . . . Disarmed . | . . . Reprogrammed . | . . . Reused . | . . . Traps Extracted . | . . . Installed . | . . . Triggered . | . . . Machines | -11 -10 -9 ---------- Run | Yrd Mat Mat Machines Disabled 3 | . 2 1 Max in Single Turn 1 | . 1 1 Machines Repaired . | . . . Machines Dismantled . | . . . Machines Sabotaged . | . . . Overloaded Fab Kills . | . . . Hacking | -11 -10 -9 --------- Run | Yrd Mat Mat Machines Accessed 2 | . . 2 Terminals 2 | . . 2 Fabricators . | . . . Repair Stations . | . . . Recycling Units . | . . . Scanalyzers . | . . . Garrison Access . | . . . Total Hacks 8 | . . 8 Successful 1 | . . 1 Failed 7 | . . 7 Catastrophic 2 | . . 2 Database Lockouts . | . . . Manual 8 | . . 8 Terminals 8 | . . 8 Fabricators . | . . . Repair Stations . | . . . Recycling Units . | . . . Scanalyzers . | . . . Garrison Access . | . . . Terminal Hacks 1 | . . 1 Branch Access Points 1 | . . 1 Fabricator Hacks . | . . . Repair Station Hacks . | . . . Recycling Unit Hacks . | . . . Scanalyzer . | . . . Garrison Access Hacks . | . . . Unauthorized Hacks . | . . . Terminals . | . . . Fabricators . | . . . Repair Stations . | . . . Recycling Units . | . . . Scanalyzers . | . . . Garrison Access . | . . . Data Cores Recovered . | . . . Used . | . . . Hacking Detections 2 | . . 2 Full Trace Events . | . . . Feedback Events . | . . . Feedback Blocked . | . . . Robot Schematics Acquired . | . . . Robots Built . | . . . Authchips . | . . . Time . | . . . Total Robot Build Rating . | . . . Part Schematics Acquired . | . . . Parts Built . | . . . Authchips . | . . . Time . | . . . Total Part Build Rating . | . . . Parts Repaired . | . . . Time . | . . . Parts Recycled . | . . . Recycled Matter . | . . . Retrieved Matter . | . . . Retrieved Components . | . . . Parts Scanalyzed . | . . . Part Schematics Acquired . | . . . Parts Damaged . | . . . Bothacking | -11 -10 -9 ------------ Run | Yrd Mat Mat Used RIF Installer . | . . . Robots Hacked . | . . . Non-combat . | . . . Combat . | . . . Robot Hacks Applied . | . . . Relay Couplers Released . | . . . Fabnet Peak Effective % . | . . . Robots Rewired . | . . . Allies Hacked . | . . . Hacks Repelled . | . . . Allies | -11 -10 -9 -------- Run | Yrd Mat Mat Total Allies . | . . . Largest Group . | . . . Highest-Rated Group . | . . . Highest-Rated Ally . | . . . Total Orders . | . . . Ally Attacks . | . . . Total Damage . | . . . Kills . | . . . Allies Corrupted . | . . . Allies Melted . | . . . Intel | -11 -10 -9 ------- Run | Yrd Mat Mat Robot Analysis Total . | . . . Derelict Logs Recovered . | . . . Drone Launches . | . . . Drone Recoveries . | . . . Exploration | -11 -10 -9 ------------- Run | Yrd Mat Mat Turns Passed 1629 | 80 473 1076 Spaces Moved 824 | 45 218 561 Core 6 | 6 . . Treads 539 | 39 218 282 Legs . | . . . Wheels 279 | . . 279 Hover . | . . . Flight . | . . . Fastest Speed 50 | 50 160 86 Average Speed 139 | 148 160 130 Slowest Speed 170 | 160 160 170 Overloaded Moves . | . . . Propulsion Burnouts . | . . . Robots Hopped . | . . . Cave-ins Triggered . | . . . Exploration Rate (%) 31 | 4 49 40 Regions Visited 2 Branch Regions . Pre-discovered Areas . | . . . Known Exits Taken . | . . . Unknown Exits Taken 2 | 1 1 . Scrap Searched . | . . . Spaces Dug 6 | . . 6 Terrain Destroyed 25 | . 7 18 Melee 6 | . . 6 Projectile . | . . . AOE 19 | . 7 12 Terrain Rammed . | . . . Walls Destroyed . | . . . Machines Disabled . | . . . Actions | -11 -10 -9 --------- Run | Yrd Mat Mat Total 1097 | 57 277 763 Wait 92 | . 7 85 Move 822 | 44 217 561 Hop . | . . . Pick Up 21 | 7 2 12 Fast Attach 15 | 3 3 9 Attach 12 | 3 3 6 Detach . | . . . Swap 3 | . . 3 Drop 3 | . 1 2 Fire 92 | . 43 49 Melee 30 | . . 30 Ram 1 | . . 1 Kick . | . . . Crush 6 | . 1 5 Escape Stasis . | . . . Rewire . | . . . Trap . | . . . Miscellaneous . | . . . Route ------- -11/Scrapyard -10/Materials (discovered 2 exits: *Mat / [*Min]) -9/Materials (discovered 1 exit: *Min) History --------- Turn | Location | Event 5 | -11/Scrapyard | Discovered new exit (range 15) 81 | -11/Scrapyard | Entered Materials 312 | -10/Materials | Build established: Mutant 334 | -10/Materials | Discovered new exit (range 7) 407 | -10/Materials | Core integrity fell below 50% 443 | -10/Materials | Lost 4 parts (1p3w) 537 | -10/Materials | Discovered new exit (range 12) 554 | -10/Materials | Entered another Materials area 554 | -9/Materials | Evolved 2 slots: Propulsion x1, Utility x1 714 | -9/Materials | Identified exit to Mines 892 | -9/Materials | Core integrity fell below 50% 905 | -9/Materials | Core integrity fell below 20% 932 | -9/Materials | Lost 4 parts (1n3w) 1630 | -9/Materials | Destroyed by B-36 Bruiser with Hammer Last Messages --------------- 01474_ K-01 Serf collects debris. 01479_ K-01 Serf cleans the Terminal. 01481_ K-01 Serf collects debris. 01481_ K-01 Serf cleans the Terminal. 01509_ U-05 Engineer works on Electrolysis Chamber. 01520_ R-06 Scavenger collects Heat Sink. 01528_ R-06 Scavenger collects Aluminum Leg. 01538_ K-01 Serf cleans the Electrolysis Chamber. 01578_ G-34 Mercenary destroyed. 01581_ The unstable cave ceiling collapses. 01588_ K-01 Serf cleans the Electrolysis Chamber. 01614_ Salvage Targeting Computer destroyed. 01614_ System corrupted by crushing effect (+5). 01617_ K-01 Serf cleans the Electrolysis Chamber. 01617_ Electrolysis Chamber disabled. 01621_ K-01 Serf collects debris. 01626_ Y-45 Defender destroyed. 01629_ K-01 Serf collects debris. 01629_ System corrupted: Hvy. Assault Rifle jammed. 01630_ R-06 Scavenger collects Hvy. Assault Rifle. Map ----- +----------------------------------------------------+ | ????????????????????????# #????????## """ ## | | ????????????????????????# "" |#????????## """ ## | | ????????????????????????# "" #????????## """ ## | | ????????????????????????# #????????## "" #? | | ????????????????????????# """ #??######## """ #? | | ??????????? ??????????# """ #??#//!!==# "" #? | | ?????????? ??????????# """ #??#//!!==# """ #? | | ?????????? #?????????# #??# # * " #? | | ?????????? =! ?????????####+###??## #!% !#? | | ?????????? %% ??????????# ##### ##+###### | | ??????????# * ??????????# ^ ! % | | ?????????## ######????# ^ | | ?????????# # #????# !!^ % | | ?????????? """ #????# # !!! ##/###### | | ??????????# #""" ###########" !! # =* #?? | | ??????????# #""" ## ### # "T" #?? | | ??????????# # ## """ #?# # #? | | ??????????# #! ## """ ### ""T"" # """## | | ??????????# # ?# """ + """"" # """## | | ??????????# ###+#### t ####+######## """## | | ???? # #w""" #?? ????????#= ??# | | ???? + + """ [ #???????????# ""??#? | | ??????????# #r"*" #???????????# """??? | | ??????????# ###+#### %k ! #???????????# ""???? | | ??????????# # ?# b #???????????# ????? | | ??????????# # ## @ #???????????# ????? | | ??????????# # ##########????????????###????? | | ??????????# # """ #????????????????????????????? | | ??????????# # """ #????????????????????????????? | | ??????????# # """ #????????????????????????????? | | ??????????# # #????????????????????????????? | | ??????????# #######????????????????????????????? | | ??????????# ???????????????????????????????????? | | ??????????# ??????????????????????????????????## | | ?????????? ?????????????????????????????###### | | ??????????? ?????????????????????????????# """ | | ???????????????????????????????????????????# "R" | | ???????????????????????????????????????????# " " | | ???????????????????????????????????????????# | | ???????????????????????????????????????????# *! | | ???????????????????????????????????????????# *! | | ???????????????????????????????????????????# *! | | ???????????????????????????????????????????# | | ???????????????????????????????????????????# | | ??????????????????????????????????#####??#######+# | | ??????????????????????????????????#!! #### | | ??????????????????????????????????#! | | ??????????????????????????????????#!! #### | | ??????????????????????????????????#!! #??# ##### | | ??????????????????????????????????#= #??# #???? | +----------------------------------------------------+ Best States ------------- Heat Dissipation 28 Energy Generation 12 Energy Capacity 265 Matter Stores 300 Matter Capacity 300 Sight Range 18 Terrain Scan Density 10 Armor Coverage 150 Evasion (%) 42 Recoil Reduction 3 Salvage Targeting 1 Item Schematics ----------------- None Robot Schematics ------------------ None Fabricated ------------ Nothing Alien Tech Used ----------------- None Achievements -------------- None Challenges ------------ None Game ------ Seed RefinerySeismicPurifier Manual? 0 Play Time 00:08:14 Cumulative 774.8 hours Start 2024.08.10 @ 05:47:10 End 2024.08.10 @ 05:59:54 Sessions 2 Manual Loads 0 Difficulty Rogue Special Mode None Game No. 753 Rogue 753 Adventurer 0 Explorer 0 Win Type - Total 39 Types 14/4/11/2/0/0/5/2/1 Lore% 82 Gallery% 90 Achievement% 84 Wizard Run 0 Options --------- Layout 0 ASCII 0 Keyboard 0 Movement Numpad Keybinds 0 Fullscreen 1 Font 18/Smallcaps Map View 76x50 Zoom Use 0% Tactical HUD 1 Map Filters NONE Filters NONE Steam 1 RUN: 621d26be-28b4-4b66-b413-02a513c3467c